bitfinex/quotes_ETHUSD_20260125
["timestamp","ask_amount","ask_price","bid_price","bid_amount"]
[1769311156603,1.13439315,2946.8,2945.6,1.18538189]
[1769311156754,1.13439315,2946.8,2945.7,1.18538189]
[1769311158385,1.9827732,2946.8,2945.7,1.18538189]
[1769311158691,1.9827732,2946.8,2945.8,1.18738189]
[1769311159185,1.13439315,2946.8,2945.8,1.18738189]
[1769311160287,0.04341889,2946.8,2945.8,1.18738189]
[1769311160496,0.001,2946.8,2945.9,1.18538189]
[1769311161694,0.04341889,2946.8,2945.9,1.18538189]
[1769311163602,1.09097426,2946.7,2945.9,1.13538189]
[1769311163970,0.128,2946.7,2945.9,1.13538189]
[1769311164391,0.04342177,2946.6,2945.9,1.13538189]
[1769311164766,0.89187296,2946.6,2945.9,1.13538189]
[1769311164977,0.89187296,2946.6,2945.9,1.13198699]
[1769311165302,0.04342177,2946.6,2945.9,1.13198699]
[1769311165465,0.001,2946.6,2945.9,1.13198699]
[1769311170605,0.001,2946.4,2945.9,1.13198699]
[1769311182126,0.001,2946.2,2945.9,1.13198699]
[1769311187035,0.001,2946.4,2946.0,1.1438146]
[1769311187190,0.001,2946.4,2946.2,1.11155708]
[1769311187611,0.001,2946.8,2946.3,1.14380684]
[1769311187810,0.001,2947.0,2946.4,1.11155708]
[1769311188222,1.17310875,2947.7,2946.5,1.11155708]
[1769311188427,1.17310875,2947.7,2946.6,1.11155708]
[1769311188428,0.128,2947.7,2946.6,1.11155708]
[1769311188629,0.128,2947.7,2946.5,3.52326054]
[1769311188630,0.76954311,2947.7,2946.8,1.11155708]
[1769311188930,0.04240594,2947.7,2946.8,1.11155708]
[1769311189122,1.21711037,2948.0,2946.8,1.11155708]
[1769311190616,1.21711037,2948.0,2946.9,1.11155708]
[1769311193738,0.001,2947.8,2946.9,1.11155708]
[1769311194717,0.20761438,2947.8,2946.9,1.11155708]
[1769311195027,0.25001888,2947.8,2946.9,1.11155708]
[1769311197035,1.42312763,2947.8,2946.9,1.11155708]
[1769311197427,1.17310875,2947.7,2946.7,1.11155708]
[1769311202254,1.21551613,2947.6,2946.5,1.11155708]
[1769311202411,1.17310875,2947.4,2946.5,1.11155708]
[1769311202606,1.17310875,2947.4,2946.2,1.16531064]
[1769311202844,0.60109857,2947.5,2945.8,0.002]
[1769311202845,1.20382078,2947.0,2945.8,0.002]
[1769311203777,1.20382078,2946.7,2945.8,0.002]
[1769311204040,0.47270813,2946.6,2945.8,1.16731064]
[1769311204225,0.84832032,2947.0,2945.8,1.16731064]
[1769311204423,2.0521411,2947.0,2945.8,1.16731064]
[1769311204743,0.84832032,2947.0,2945.8,1.16731064]
[1769311204950,1.20382078,2946.9,2945.8,1.16731064]
[1769311205510,1.20382078,2946.9,2946.6,0.002]
[1769311205717,0.20521411,2946.8,2946.6,0.002]
[1769311206049,1.20382078,2946.8,2946.6,0.001]
[1769311206351,1.20382078,2946.8,2945.9,1.16331466]
[1769311210141,1.24623967,2946.8,2945.9,1.16331466]
[1769311210723,1.20382078,2946.8,2945.9,1.16331466]
[1769311212054,1.24623967,2946.8,2945.9,1.16331466]
[1769311212251,0.20945905,2946.7,2945.9,1.16331466]
[1769311214857,2.00386267,2947.0,2945.9,1.16331466]
[1769311216042,1.11312585,2946.9,2945.9,1.16331466]
[1769311216336,0.04241889,2946.8,2945.9,1.16331466]
[1769311217645,2.00386267,2947.0,2945.9,1.16331466]
[1769311217958,0.001,2946.7,2946.0,0.03225037]
[1769311218160,0.001,2946.7,2946.1,1.15464245]
[1769311218332,0.001,2946.7,2946.2,1.18689481]
[1769311218728,0.001,2946.7,2946.2,1.15464245]
[1769311219666,1.11412585,2946.7,2945.8,0.002]
[1769311219829,0.04242177,2946.6,2945.8,1.15664245]
[1769311220035,0.001,2946.7,2945.8,1.15664245]
[1769311221062,0.001,2946.7,2945.8,1.15325321]
[1769311221356,0.001,2946.7,2945.8,1.35667614]
[1769311226467,1.15654618,2946.7,2945.8,1.35667614]
[1769311226651,1.15654618,2946.7,2945.8,1.15325321]
[1769311228393,1.15654618,2946.7,2945.6,1.15464245]
[1769311228562,1.11312585,2946.6,2945.6,1.15464245]
[1769311229487,0.001,2946.5,2945.6,1.15464245]
[1769311230082,0.001,2946.5,2945.7,1.15464245]
[1769311230375,0.001,2946.5,2945.9,1.15464245]
[1769311239211,1.11565595,2946.5,2945.6,1.21468754]
[1769311239395,1.11565595,2946.5,2945.5,0.03425922]
[1769311239560,1.11565595,2946.5,2945.5,1.24894676]
[1769311240990,1.11565595,2946.5,2945.7,1.21668754]
[1769311241191,1.31216245,2946.5,2945.7,1.21668754]
[1769311241391,0.001,2946.3,2945.7,1.21668754]
[1769311242761,0.001,2946.3,2945.7,0.002]
[1769311243009,0.001,2946.3,2945.7,1.21668754]
[1769311248302,0.001,2946.3,2945.7,0.002]
[1769311251218,0.001,2946.3,2945.7,1.21668754]
[1769311252010,0.001,2946.3,2945.7,0.002]
[1769311252213,1.11565595,2946.3,2945.7,0.002]
[1769311253007,0.001,2946.3,2945.7,0.002]
[1769311255511,0.001,2946.3,2945.8,1.21468754]
[1769311260520,0.001,2946.3,2945.9,1.21468754]
[1769311261098,0.001,2946.3,2946.0,0.03225841]
[1769311261295,0.001,2946.3,2945.9,1.21468754]
[1769311262715,0.001,2946.3,2945.7,0.002]
[1769311264385,0.001,2946.1,2945.7,0.002]
[1769311265626,1.12485514,2946.1,2945.7,0.002]
[1769311266020,1.12485514,2946.1,2945.5,0.002]
[1769311268345,1.12485514,2946.1,2945.1,0.002]
[1769311268346,1.12385514,2945.8,2945.1,0.002]
[1769311268496,3.5234447,2945.9,2945.1,0.002]
[1769311268497,1.58858512,2945.7,2945.1,0.002]
[1769311272932,1.12385514,2945.7,2945.1,0.002]
[1769311273234,1.12385514,2945.7,2945.0,0.002]
[1769311273235,3.5234447,2945.4,2945.0,0.002]
[1769311273438,1.1268321,2945.8,2945.0,0.002]
[1769311273947,1.1268321,2946.0,2945.0,1.21464191]
[1769311274268,0.001,2946.1,2945.0,1.21464191]
[1769311274269,0.712,2946.1,2945.1,1.18036183]
[1769311274798,0.90022582,2946.1,2945.2,1.18036183]
[1769311275003,0.90022582,2946.1,2945.3,1.18036183]
[1769311275514,0.90022582,2946.1,2945.4,1.18036183]
[1769311275716,0.712,2946.1,2945.4,1.18036183]
[1769311275931,0.5,2945.9,2945.4,1.18036183]
[1769311276139,0.712,2946.1,2945.4,1.18036183]
[1769311276935,0.001,2945.9,2945.4,1.18036183]
[1769311280241,0.001,2945.9,2945.3,0.002]
[1769311280739,1.1278321,2945.9,2945.3,0.002]
[1769311281036,0.5,2945.7,2945.3,0.002]
[1769311281436,1.1278321,2945.9,2945.3,0.002]
[1769311281734,1.31181531,2945.9,2945.3,0.002]
[1769311282627,0.18498321,2945.9,2945.3,0.002]
[1769311283536,0.04243329,2945.8,2945.3,0.002]
[1769311285038,1.16926539,2945.8,2945.3,0.002]
[1769311285436,1.16926539,2945.8,2945.0,0.002]
[1769311285745,1.1268321,2945.6,2945.0,0.002]
[1769311285937,1.1268321,2945.5,2945.0,0.002]
[1769311289958,0.54243617,2945.6,2945.0,0.002]
[1769311290255,0.04243617,2945.6,2945.0,0.002]
[1769311291928,0.5,2945.4,2945.0,0.002]
[1769311292329,0.04243617,2945.6,2945.0,0.002]
[1769311293561,0.04243617,2945.6,2945.0,1.15822921]
[1769311293768,0.001,2945.7,2945.0,1.15822921]
[1769311296836,0.5,2945.5,2945.0,1.15822921]
[1769311297551,0.001,2945.7,2945.0,1.15822921]
[1769311302569,0.001,2945.7,2945.1,1.18850908]
[1769311302770,0.001,2945.9,2945.4,1.15622921]
[1769311312419,0.001,2945.7,2945.4,1.15622921]
[1769311313422,0.001,2945.7,2945.2,0.002]
[1769311314326,0.001,2945.7,2945.2,1.15822921]
[1769311316133,0.001,2945.7,2945.2,0.002]
[1769311316740,0.001,2945.7,2945.2,0.21324914]
[1769311317344,0.001,2945.7,2945.2,1.36947835]
[1769311323228,0.001,2945.7,2945.3,1.15603294]
[1769311324155,0.001,2945.9,2945.3,1.15603294]
[1769311324752,0.001,2946.1,2945.6,1.15603294]
[1769311325258,0.001,2945.7,2945.6,1.15603294]
[1769311325428,0.001,2946.1,2945.6,1.35671344]
[1769311326842,0.001,2946.1,2945.6,0.2006805]
[1769311327354,0.001,2946.1,2945.7,0.03226437]
[1769311327859,0.001,2946.1,2945.6,0.2006805]
[1769311328755,0.001,2946.1,2945.7,0.03226705]
[1769311329563,0.001,2946.1,2945.7,1.18829999]
[1769311329857,0.001,2946.1,2945.7,1.15603294]
[1769311330858,0.001,2946.1,2945.8,1.41206395]
[1769311331171,0.001,2946.1,2945.8,1.37980157]
[1769311332373,0.001,2946.3,2945.9,1.19953486]
[1769311332586,0.001,2946.5,2945.9,1.19953486]
[1769311332786,0.001,2946.5,2945.8,1.45556497]
[1769311333099,0.001,2946.5,2945.8,1.42330349]
[1769311333240,0.001,2946.5,2945.9,1.42673359]
[1769311334574,0.001,2946.5,2946.0,1.19953486]
[1769311338185,0.001,2946.5,2946.1,1.19953486]
[1769311338471,0.001,2946.7,2946.3,1.19953486]
[1769311340590,0.001,2946.7,2946.3,2.04805224]
[1769311340793,0.001,2946.7,2946.4,1.40756481]
[1769311342688,0.001,2946.7,2946.5,1.19953486]
[1769311346479,0.001,2946.7,2946.3,1.19953486]
[1769311346680,0.001,2946.7,2946.0,2.04812192]
[1769311346992,0.001,2946.7,2946.1,0.84857805]
[1769311347182,0.001,2946.7,2946.2,0.20481129]
[1769311348984,1.23634303,2946.7,2946.2,0.20481129]
[1769311349209,1.23634303,2946.7,2946.0,0.84859274]
[1769311349702,1.23634303,2946.7,2946.1,0.8485754]
[1769311350412,1.23634303,2946.7,2946.4,0.002]
[1769311350581,0.001,2946.5,2946.4,0.002]
[1769311351411,0.001,2946.5,2946.1,0.002]
[1769311353222,1.21499794,2946.5,2946.1,0.002]
[1769311353383,1.21499794,2946.5,2945.8,0.84864864]
[1769311353583,1.21499794,2946.5,2945.8,1.30340228]
[1769311354487,1.21499794,2946.5,2945.8,0.45475364]
[1769311355305,1.21499794,2946.5,2945.8,1.30341637]
[1769311355877,1.21499794,2946.5,2945.8,0.45475364]
[1769311356083,1.21499794,2946.5,2945.7,0.84867396]
[1769311356515,1.21499794,2946.5,2945.8,0.84866182]
[1769311358084,1.21499794,2946.5,2945.7,0.8486947]
[1769311358319,1.21499794,2946.5,2945.6,1.39350997]
[1769311360434,1.21499794,2946.5,2945.6,0.2006805]
[1769311361035,1.21499794,2946.5,2945.6,1.04940035]
[1769311361234,1.21499794,2946.5,2945.6,0.2006805]
[1769311362440,1.21499794,2946.5,2945.8,0.002]
[1769311362608,0.001,2946.3,2945.8,0.002]
[1769311362808,1.21499794,2946.3,2945.8,0.002]
[1769311369407,1.21499794,2946.3,2944.6,0.0008]
[1769311369408,0.53994195,2945.6,2944.6,0.0008]
[1769311369614,3.14686589,2945.5,2944.6,0.0008]
[1769311369847,0.53994195,2945.4,2944.6,0.0008]
[1769311370149,0.54424257,2945.3,2944.6,0.0008]
[1769311371617,0.128,2945.4,2944.6,1.19362947]
[1769311371926,0.67647402,2945.4,2944.6,1.19362947]
[1769311372129,0.67647402,2945.4,2944.6,0.0008]
[1769311372746,0.54847402,2945.4,2944.6,0.0008]
[1769311372955,0.55265274,2945.3,2944.6,0.0008]
[1769311374556,0.55265274,2945.3,2944.8,0.002]
[1769311374767,0.001,2945.1,2944.6,0.0008]
[1769311375060,0.001,2945.1,2944.6,1.19362947]
[1769311375263,0.001,2945.1,2944.6,0.89452815]
[1769311375628,0.001,2945.1,2944.6,0.87339961]
[1769311387153,0.001,2945.1,2944.8,0.002]
[1769311387352,0.001,2945.1,2944.7,1.209399]
[1769311388001,0.04243329,2945.8,2944.8,1.209399]
[1769311388280,0.9955343,2946.1,2945.0,1.209399]
[1769311388482,0.9955343,2946.1,2945.0,1.15784233]
[1769311389269,0.04242897,2946.1,2945.0,1.15784233]
[1769311389471,0.04243041,2946.0,2945.0,1.15784233]
[1769311389688,1.0517244,2946.2,2945.0,1.15784233]
[1769311389895,1.90027988,2946.2,2945.0,1.15784233]
[1769311390198,0.20292799,2946.1,2945.0,1.15784233]
[1769311390387,0.04243041,2946.0,2945.0,1.15784233]
[1769311391799,0.20292799,2946.1,2945.1,1.209399]
[1769311391997,0.001,2946.3,2945.2,1.209399]
[1769311393803,0.04342609,2946.3,2945.2,1.209399]
[1769311394189,0.04342609,2946.3,2945.3,1.18207401]
[1769311395981,0.04003189,2946.3,2945.3,1.18207401]
[1769311396182,0.04003189,2946.3,2945.5,1.18207401]
[1769311398200,6.25289382,2946.4,2945.5,1.18207401]
[1769311398703,0.001,2946.5,2945.6,1.18207401]
[1769311398704,0.001,2946.1,2945.6,1.18207401]
[1769311400509,0.001,2946.1,2945.7,1.18207401]
[1769311400884,0.001,2946.5,2945.7,1.18207401]
[1769311401084,0.001,2946.5,2945.8,1.18207401]
[1769311401879,0.5,2946.4,2945.8,1.18207401]
[1769311407714,0.5,2946.4,2945.6,1.18207401]
[1769311410286,0.5,2946.4,2945.8,0.002]
[1769311410489,0.001,2946.3,2945.8,1.18407401]
[1769311422339,0.001,2946.3,2946.0,0.002]
[1769311422837,0.001,2946.1,2946.0,0.002]
[1769311423049,0.001,2946.1,2945.8,1.18407401]
[1769311431938,0.001,2946.1,2945.8,0.002]
[1769311434974,0.001,2946.1,2946.0,0.002]
[1769311439768,0.001,2946.1,2945.8,0.002]
[1769311445280,0.001,2946.1,2945.8,1.33229847]
[1769311447082,0.001,2946.1,2946.0,0.002]
[1769311447381,0.001,2946.1,2945.8,1.33229847]
[1769311449660,0.001,2946.1,2945.8,0.002]
[1769311457692,0.001,2946.1,2945.8,1.28894633]
[1769311458996,0.001,2946.1,2946.0,0.002]
[1769311468307,0.001,2946.1,2946.0,1.28894633]
[1769311469517,0.001,2946.5,2946.2,1.28694633]
[1769311475818,0.001,2946.5,2946.3,1.31286347]
[1769311476112,1.27075379,2947.3,2946.4,1.52900434]
[1769311476322,1.27075379,2947.3,2946.4,1.31286347]
[1769311476881,10.48808782,2947.5,2946.4,1.31286347]
[1769311477112,11.76305144,2947.5,2946.5,1.31286347]
[1769311479185,8.23885744,2947.5,2946.5,1.31286347]
[1769311480886,0.04241025,2947.4,2946.5,1.31286347]
[1769311481082,0.04241025,2947.4,2946.6,1.52899888]
[1769311481614,8.23885744,2947.5,2946.6,1.52899888]
[1769311482186,6.96389382,2947.5,2946.6,1.52899888]
[1769311482410,6.96389382,2947.5,2946.6,1.53099888]
[1769311482690,0.001,2947.3,2946.6,1.53099888]
[1769311483992,1.28555557,2947.2,2946.6,0.002]
[1769311484291,0.04241457,2947.1,2946.6,0.002]
[1769311484723,1.3279687,2947.2,2946.6,0.002]
[1769311485304,1.3279687,2947.2,2946.2,0.84853548]
[1769311485629,1.3279687,2947.2,2946.1,1.31286347]
[1769311485939,1.3279687,2947.2,2946.1,2.16142282]
[1769311486435,1.3279687,2947.2,2946.1,2.71700824]
[1769311486605,1.3279687,2947.2,2946.1,1.86844889]
[1769311487006,1.3279687,2947.2,2946.1,2.71702744]
[1769311488443,1.3279687,2947.2,2946.1,1.86844889]
[1769311488651,1.3279687,2947.2,2946.1,2.71702018]
[1769311488947,1.41771364,2947.1,2946.2,0.27170202]
[1769311490044,1.41771364,2947.1,2946.2,1.58456549]
[1769311491158,1.41771364,2947.1,2946.2,1.12025097]
[1769311491332,1.41771364,2947.1,2946.3,1.31286347]
[1769311491949,0.50547009,2947.2,2946.4,1.31286347]
[1769311492152,1.66497535,2947.3,2946.4,1.31286347]
[1769311492153,1.62256366,2947.3,2946.4,1.89559112]
[1769311493055,1.62256366,2947.3,2946.5,1.31286347]
[1769311493954,1.41871364,2947.3,2946.5,1.31286347]
[1769311494152,0.001,2947.3,2946.5,1.31286347]
[1769311494836,0.001,2946.9,2946.5,1.31286347]
[1769311495145,0.001,2946.9,2946.6,1.31286347]
[1769311497436,0.001,2946.9,2946.4,1.31286347]
[1769311497735,0.001,2946.9,2946.5,0.21613638]
[1769311502682,0.001,2946.9,2946.5,1.0645935]
[1769311502843,0.001,2946.9,2946.5,0.21613638]
[1769311510468,0.001,2946.9,2946.5,1.06458022]
[1769311510971,0.001,2947.3,2946.6,1.38137286]
[1769311511288,0.001,2947.3,2946.7,1.38137286]
[1769311514164,0.001,2947.3,2946.5,2.35065002]
[1769311515291,0.001,2947.3,2946.5,1.50220464]
[1769311515488,0.001,2947.3,2946.2,2.35073446]
[1769311515489,1.36240155,2947.3,2946.2,2.35073446]
[1769311515794,1.36240155,2947.3,2946.3,1.79459346]
[1769311515795,1.36140155,2947.1,2946.3,1.79459346]
[1769311518189,1.36240155,2947.3,2946.3,3.2967981]
[1769311518491,0.001,2947.1,2946.4,1.50220464]
[1769311521373,0.001,2947.1,2946.4,2.35069488]
[1769311521572,0.001,2947.1,2946.5,0.25857683]
[1769311521993,0.001,2947.1,2946.5,1.76078147]
[1769311524300,1.36240155,2947.1,2946.3,0.23507345]
[1769311525904,1.36240155,2947.1,2946.3,2.58579123]
[1769311526106,1.36240155,2947.1,2946.3,1.73727809]
[1769311528001,1.36240155,2947.1,2946.3,2.5857996]
[1769311529394,1.36240155,2947.1,2946.3,1.73727809]
[1769311529695,1.36240155,2947.1,2946.4,0.17372781]
[1769311530113,1.36240155,2947.1,2946.5,0.002]
[1769311530508,0.001,2946.9,2946.5,0.002]
[1769311531597,0.001,2946.9,2946.5,1.50420464]
[1769311535924,0.001,2946.9,2946.5,0.002]
[1769311543236,0.001,2946.9,2946.7,0.002]
[1769311554163,0.001,2946.9,2946.5,0.002]
[1769311555841,0.001,2946.9,2946.6,0.002]
[1769311566678,0.001,2946.9,2946.3,0.002]
[1769311566679,1.52494314,2946.8,2946.3,0.002]
[1769311566835,1.52494314,2946.6,2945.8,0.002]
[1769311567870,1.52494314,2946.6,2946.5,0.001]
[1769311568370,1.52494314,2946.6,2945.8,0.002]
[1769311568371,1.52494314,2946.6,2945.8,3.01e-06]
[1769311575881,1.46454928,2946.5,2945.8,3.01e-06]
[1769311576082,1.50697249,2946.5,2945.8,3.01e-06]
[1769311576288,1.46454928,2946.3,2945.8,3.01e-06]
[1769311579292,1.50697537,2946.3,2945.8,3.01e-06]
[1769311579494,1.50697537,2946.3,2946.0,0.002]
[1769311579683,1.50697537,2946.3,2945.8,3.01e-06]
[1769311580462,1.50697537,2946.3,2945.5,0.002]
[1769311580463,1.46454928,2946.2,2945.5,0.002]
[1769311580662,1.46454928,2946.0,2945.5,0.002]
[1769311582097,1.46454928,2946.0,2945.4,0.002]
[1769311582296,1.46454928,2946.0,2945.3,0.002]
[1769311588219,1.46454928,2946.0,2945.2,0.0006058]
[1769311588517,1.46454928,2946.0,2945.2,1.59312285]
[1769311589224,1.66553432,2946.0,2945.2,1.59312285]
[1769311591017,1.66553432,2946.0,2945.4,0.002]
[1769311591315,0.001,2945.8,2945.4,0.002]
[1769311591894,0.001,2945.8,2945.2,1.59312285]
[1769311592408,0.001,2945.8,2945.2,0.0006058]
[1769311592717,0.001,2945.8,2945.2,0.24500769]
[1769311592881,0.001,2945.8,2945.3,1.55814601]
[1769311593086,0.001,2945.8,2945.2,0.24500769]
[1769311593280,0.001,2945.8,2945.2,0.0006058]
[1769311596795,1.57144367,2945.8,2945.2,0.0006058]
[1769311602410,0.001,2945.8,2945.2,0.0006058]
[1769311603532,0.001,2945.8,2945.4,0.002]
[1769311603828,0.001,2945.6,2945.4,0.002]
[1769311604831,0.001,2945.6,2945.2,0.0006058]
[1769311608123,0.001,2945.6,2945.2,1.55875181]
[1769311608637,0.001,2945.6,2945.4,1.55814601]
[1769311609751,0.001,2945.6,2945.2,1.55875181]
[1769311613742,0.001,2945.6,2945.2,0.0006058]
[1769311615555,0.001,2945.6,2945.4,0.002]
[1769311617463,0.001,2945.6,2945.2,0.0006058]
[1769311620459,0.001,2945.6,2945.2,1.79971345]
[1769311622455,0.001,2945.6,2945.2,1.55875181]
[1769311622830,0.001,2945.6,2945.2,2.40758985]
[1769311623030,0.001,2945.8,2945.3,1.65528651]
[1769311623451,1.5116844,2946.5,2945.5,1.65528651]
[1769311623651,0.50576895,2946.7,2945.5,1.65528651]
[1769311623652,2.01745335,2946.7,2945.5,1.65528651]
[1769311623969,0.20598722,2946.6,2945.7,1.65528651]
[1769311625470,0.20598722,2946.6,2945.8,1.65528651]
[1769311625669,0.50576895,2946.7,2945.8,1.65528651]
[1769311626238,0.001,2946.7,2945.8,1.65528651]
[1769311626971,0.001,2946.7,2945.7,0.91976964]
[1769311626972,0.001,2946.7,2946.0,1.65528651]
[1769311627666,0.001,2946.5,2946.0,0.84859507]
[1769311627866,0.001,2946.5,2946.1,1.65528651]
[1769311638706,0.001,2946.5,2945.9,6.05797192]
[1769311638876,0.001,2946.5,2946.0,0.60579719]
[1769311642910,1.66399259,2946.5,2945.6,1.55970718]
[1769311646716,1.66399259,2946.5,2945.6,0.84870718]
[1769311649085,1.66059874,2946.5,2945.6,0.84870718]
[1769311650816,1.66059874,2946.5,2945.6,2.46199572]
[1769311651024,1.66059874,2946.5,2945.7,0.59280166]
[1769311651519,1.66059874,2946.5,2945.8,0.002]
[1769311651719,0.001,2946.3,2945.8,0.002]
[1769311655913,1.52042411,2946.3,2945.8,0.002]
[1769311664224,1.52042411,2946.3,2946.0,0.002]
[1769311664425,1.52042411,2946.3,2945.8,0.002]
[1769311665540,0.001,2946.3,2945.8,0.002]
[1769311665947,0.001,2946.3,2945.8,1.66352454]
[1769311666142,0.001,2946.3,2945.8,1.91474646]
[1769311670150,0.001,2946.3,2945.8,1.91756646]
[1769311670548,0.001,2946.3,2945.8,0.25604192]
[1769311670749,0.001,2946.3,2945.8,0.00482]
[1769311675552,0.001,2946.3,2946.0,0.002]
[1769311675726,0.001,2946.1,2946.0,0.002]
[1769311687584,0.001,2946.1,2945.8,0.00482]
[1769311688355,0.001,2946.1,2946.0,0.002]
[1769311688560,0.001,2946.1,2945.8,0.00482]
[1769311692965,1.64928842,2946.1,2945.5,0.002]
[1769311697272,1.64928842,2946.1,2945.4,0.002]
[1769311700181,1.64928842,2946.1,2945.6,0.002]
[1769311700474,1.64928842,2946.1,2945.4,0.002]
[1769311701217,1.69171739,2946.1,2945.4,0.002]
[1769311702597,0.1827524,2946.0,2945.4,0.002]
[1769311702979,1.83104082,2946.0,2945.4,0.002]
[1769311707779,0.1827524,2946.0,2945.4,0.002]
[1769311710692,0.1827524,2946.0,2945.4,1.64076149]
[1769311711886,0.1827524,2946.0,2945.6,0.002]
[1769311712087,0.001,2945.9,2945.6,0.002]
[1769311712520,1.64828842,2945.6,2944.6,0.002]
[1769311712703,1.58932975,2945.3,2944.6,0.002]
[1769311712987,1.58932975,2945.2,2944.6,0.002]
[1769311713285,1.72518754,2945.2,2944.6,0.002]
[1769311713909,1.58932975,2945.2,2944.6,0.002]
[1769311714085,1.58932975,2945.0,2944.6,0.002]
[1769311714713,1.58932975,2945.0,2944.4,0.002]
[1769311714902,1.58932975,2945.0,2944.2,0.002]
[1769311715417,1.58932975,2944.9,2944.2,0.002]
[1769311718024,1.58932975,2944.9,2943.8,0.92032759]
[1769311718224,2.10058934,2944.8,2943.8,3.21949636]
[1769311719825,1.58932975,2944.8,2943.9,1.69056995]
[1769311720927,0.60924779,2945.1,2943.8,1.52892641]
[1769311720928,1.58932975,2945.0,2944.1,1.69056995]
[1769311721130,0.60924779,2945.1,2944.1,1.69056995]
[1769311721325,0.04244338,2945.1,2944.1,1.69056995]
[1769311721525,1.63177313,2945.1,2944.1,1.69056995]
[1769311724228,1.63177313,2945.1,2944.1,1.69256995]
[1769311724429,0.001,2944.7,2944.1,1.69256995]
[1769311736542,0.001,2944.5,2944.1,1.69256995]
[1769311736832,0.001,2944.5,2944.1,0.42733625]
[1769311737036,0.001,2944.5,2944.1,0.002]
[1769311743814,0.001,2944.7,2944.1,0.002]
[1769311744013,0.001,2944.7,2944.2,1.55629226]
[1769311748242,0.001,2944.5,2944.2,1.55629226]
[1769311748917,0.001,2944.5,2944.2,2.40541503]
[1769311749122,0.001,2944.5,2944.3,1.79703376]
[1769311752853,0.001,2944.5,2944.3,0.2407415]
[1769311753147,0.001,2944.5,2944.1,1.61611303]
[1769311755356,0.001,2944.5,2944.1,2.46526607]
[1769311757829,0.001,2944.5,2944.2,0.07109125]
[1769311759453,0.001,2944.5,2944.2,0.92021246]
[1769311759644,0.001,2944.7,2944.4,1.68520428]
[1769311759843,1.66148101,2945.5,2944.4,1.68520428]
[1769311760067,1.66148101,2945.5,2944.4,1.94594595]
[1769311760248,1.66148101,2945.5,2944.5,1.61411303]
[1769311760249,1.49165266,2945.5,2944.5,1.61411303]
[1769311764361,6.25289382,2945.7,2944.6,1.61411303]
[1769311764537,1.66148101,2945.6,2944.6,1.61411303]
[1769311766446,1.66148101,2945.6,2944.6,1.68520428]
[1769311766763,1.66148101,2945.6,2944.7,0.25342417]
[1769311770354,9.78009593,2945.7,2944.6,0.07109125]
[1769311770355,1.66148101,2945.4,2944.6,0.07109125]
[1769311770670,1.70151678,2945.3,2944.6,0.07109125]
[1769311772769,1.70151678,2945.3,2944.7,0.002]
[1769311773073,1.70151678,2945.3,2944.6,0.07109125]
[1769311776237,1.70151678,2945.3,2944.3,0.002]
[1769311776238,2.55033169,2945.3,2944.3,0.002]
[1769311776443,1.68946932,2944.7,2944.1,0.002]
[1769311778958,1.68607409,2944.7,2944.1,0.002]
[1769311779157,1.68607409,2944.7,2943.9,0.002]
[1769311779357,1.68946932,2944.5,2943.9,0.002]
[1769311781882,0.60622387,2944.6,2944.0,0.07109125]
[1769311782079,2.29569319,2944.6,2944.0,0.05478189]
[1769311782281,2.29569319,2944.6,2944.0,0.0364308]
[1769311782573,2.29569319,2944.6,2944.0,0.00991795]
[1769311782745,0.23381423,2944.5,2943.9,0.002]
[1769311784989,0.23381423,2944.5,2944.1,0.002]
[1769311785153,0.23381423,2944.5,2943.9,0.002]
[1769311785354,0.23481423,2944.5,2943.9,0.002]
[1769311788384,0.27726625,2944.5,2943.9,0.002]
[1769311788685,0.25729594,2944.4,2943.9,0.002]
[1769311796784,0.001,2944.5,2944.0,0.07109125]
[1769311796970,0.001,2944.5,2944.1,0.002]
[1769311797361,0.001,2944.2,2944.1,0.002]
[1769311798181,0.001,2944.2,2944.0,0.06881066]
[1769311802903,0.001,2944.2,2943.9,0.002]
[1769311803890,1.58967613,2944.2,2943.7,0.00760222]
[1769311804095,1.58967613,2944.2,2943.3,0.002]
[1769311804096,1.58867613,2943.9,2943.3,0.002]
[1769311804301,3.52844038,2944.0,2943.3,0.002]
[1769311804302,1.58867613,2943.7,2943.3,0.002]
[1769311804796,1.58867613,2943.9,2943.3,0.002]
[1769311806804,1.58867613,2943.9,2943.4,0.07109125]
[1769311807207,1.58867613,2943.9,2943.4,0.06872909]
[1769311807411,1.58867613,2943.9,2943.4,0.05219089]
[1769311807706,1.58867613,2943.9,2943.4,0.04395795]
[1769311807916,1.58867613,2943.9,2943.4,0.0233646]
[1769311808123,1.58867613,2943.9,2943.4,0.0048246]
[1769311808275,1.58867613,2943.9,2943.3,0.002]
[1769311808586,1.58867613,2943.9,2943.4,0.07109125]
[1769311808789,1.58867613,2943.9,2943.4,0.06022537]
[1769311808995,1.58867613,2943.9,2943.4,0.05814984]
[1769311809179,1.58867613,2943.9,2943.3,0.002]
[1769311809695,1.58867613,2943.9,2943.4,0.07109125]
[1769311810876,1.58867613,2943.9,2943.4,0.04502791]
[1769311811077,1.58867613,2943.9,2943.4,0.02793205]
[1769311811282,1.58867613,2944.1,2943.4,0.0089338]
[1769311811486,0.04245923,2944.0,2943.3,0.002]
[1769311811698,0.04245923,2944.0,2943.4,0.07109125]
[1769311811895,0.04245923,2944.0,2943.4,0.06017193]
[1769311812094,1.58867613,2944.1,2943.4,0.05471155]
[1769311812397,2.10473342,2944.1,2943.4,0.05471155]
[1769311812594,0.001,2944.2,2943.6,0.07109125]
[1769311812771,0.001,2944.2,2943.8,0.07109125]
[1769311813186,0.04345635,2944.2,2943.8,0.07109125]
[1769311813582,0.001,2944.2,2943.8,0.07109125]
[1769311814207,0.04345635,2944.2,2943.8,0.07109125]
[1769311814373,0.04345635,2944.2,2943.6,0.07109125]
[1769311814577,0.21746354,2944.2,2943.6,0.07109125]
[1769311815283,1.91407905,2944.2,2943.6,0.07109125]